[Event "GER-ch Youth-U18 2022"]
[Site "Willingen"]
[Date "2022.06.05"]
[Round "2.8"]
[White "Leonard, Timo"]
[Black "Pubantz, Jan"]
[Result "0-1"]
[ECO "D10"]
[WhiteElo "2018"]
[BlackElo "2265"]
[Annotator "TA"]
[PlyCount "70"]
[EventDate "2022.06.05"]
[EventType "swiss"]
[EventRounds "9"]
[EventCountry "GER"]
[SourceTitle "playchess.com"]
[Source "ChessBase"]
[SourceQuality "1"]
[TimeControl "40/4500+30:900+30"]

{[%evp 12,70,28,22,19,8,11,8,18,0,20,11,0,-9,0,0,-9,-19,-22,-40,-50,-46,-57,-54,-11,-11,0,-72,-72,-64,-71,-137,-112,-118,-125,-110,-113,-130,-130,-140,-122,-168,-168,-201,-201,-192,-186,-222,-213,-206,-166,-243,-219,-258,-204,-357,-354,-544,-361,-29989,-29990]} 1. d4 {[%emt 0:00:00]} d5 {[%emt 0:00:00]} 2. c4 {[%emt 0:00:00]} c6 {[%emt 0:00:00]} 3. cxd5 {[%emt 0:00:00]} cxd5 {[%emt 0:00:00]} 4. Bf4 {[%emt 0:00:00]} Nf6 {[%emt 0:00:00]} 5. e3 {[%emt 0:00:00]} Nc6 {[%emt 0:00:00]} 6. Nc3 {[%emt 0:00:00]} Bg4 {[%emt 0:00:00]} 7. f3 {[%emt 0:00:00]} Bd7 {[%emt 0:00:00] D10: Slav Defence: 3 cxd5 (without early Nf3) and 3 Nc3.} 8. Bd3 {[%emt 0:00:00]} e6 {[%emt 0:00:00]} 9. g4 {[%emt 0:00:00]} Be7 {[%emt 0:00:00] The position is equal.} 10. Nge2 {[%emt 0:00:00]} O-O {[%emt 0:00:00] [#]} 11. Kf2 $146 {[%emt 0:13:18]} ({Predecessor:} 11. h4 Ne8 12. Bg3 Nd6 13. Rc1 Nb4 14. Kf2 Nxd3+ 15. Qxd3 Rc8 16. h5 h6 17. Rc2 {1-0 (79) Yilmaz,M (2630)-Korchmar,V (2451) Chess.com INT 2020}) 11... Ne8 {[%emt 0:02:14][%cal Bf6e8,Be8d6,Bd6c4,Bc4a3][%mdl 32]} 12. Rc1 {[%emt 0:06:16]} Rc8 {[%emt 0:10:09]} 13. Bb1 {[%emt 0:10:12]} Nd6 {[%emt 0:10:31]} 14. h4 {[%emt 0:09:51][%cal Of4g5]} Nc4 {[%emt 0:06:02]} 15. h5 {[%emt 0:03:56]} Nb4 {[%emt 0:05:33]} 16. b3 {[%emt 0:12:03]} Na3 {[%emt 0:00:58]} 17. Bd3 {[%emt 0:01:28]} b5 {[%emt 0:06:23]} 18. Nb1 $1 {[%emt 0:10:23]} Qa5 {[%emt 0:09:06]} 19. g5 {[%emt 0:03:54]} (19. Nxa3 $11 Qxa3 20. Bb1) 19... Rxc1 $17 {[%emt 0:06:57]} ({Don't do} 19... Nxa2 20. Rxc8 Rxc8 21. Nxa3 Qxa3 22. Qb1 $18) 20. Nxc1 {[%emt 0:00:58]} Rc8 $1 {[%emt 0:02:07][%cal Oc8c1]} 21. Kg3 {[%emt 0:04:43] [#] Black continues to play with concentration.} ({Better is} 21. Ne2) 21... Rxc1 $1 {[%emt 0:15:38][%mdl 512]} 22. Bxh7+ {[%emt 0:00:04]} Kxh7 {[%emt 0:00:16]} 23. Qxc1 {[%emt 0:00:15] [#]} Nd3 $1 $36 {[%emt 0:01:17][%mdl 2048] Keeping White busy. Pair of Knights!} ({Resist} 23... Nxa2 24. Qb2 Nb4 25. Qxa3 Qxa3 26. Nxa3 $18) 24. Qf1 {[%emt 0:03:11]} Nxf4 {[%emt 0:00:33] 0x0.00222c96128fdp-1022s more active pieces.} 25. exf4 {[%emt 0:00:06][%cal Og5g6]} Kg8 {[%emt 0:03:20]} 26. Nxa3 {[%emt 0:05:25]} (26. h6 $17 {keeps fighting.} g6 27. Qe1 Qxe1+ 28. Rxe1) 26... Qxa3 $19 {[%emt 0:00:31]} 27. Qd3 {[%emt 0:00:23]} Qd6 {[%emt 0:03:10] White must now prevent ...Bxg5.} ({Not} 27... Qxa2 28. h6 Bf8 29. Qc3 $17) 28. g6 {[%emt 0:01:29] And now gxf7+ would win.} Be8 {[%emt 0:00:57]} 29. gxf7+ {[%emt 0:00:56]} Bxf7 {[%emt 0:00:10]} 30. h6 {[%emt 0:00:46] aiming for hxg7.} g5 {[%emt 0:01:42][%cal Bg7g5,Bg5g4,Bg4g3][%mdl 32]} 31. h7+ {[%emt 0:00:41]} (31. Qe3 $142) 31... Kh8 {[%emt 0:00:05] Dancing on a razor blade.} 32. Qc3 {[%emt 0:00:26]} Qxf4+ {[%emt 0:01:24]} 33. Kf2 $2 {[%emt 0:00:06]} (33. Kg2 Qb8 34. Rc1 Kxh7 35. Qc7) 33... Bf8 {[%emt 0:01:03]} 34. Qd3 {[%emt 0:01:07]} (34. Qc8 {might work better.} Qxd4+ 35. Kg3 Qe5+ 36. Kg2) 34... g4 {[%emt 0:00:40] Threatens to win with ...Bg7.} 35. Rh4 $2 {[%emt 0:00:14]} (35. Qe3 $19 g3+ 36. Ke2) 35... g3+ {[%emt 0:00:17] Weighted Error Value: White=0.55/Black=0.15 (very precise)} 0-1

[Event "GER-ch Youth-U18 2022"]
[Site "Willingen"]
[Date "2022.06.05"]
[Round "2.9"]
[White "Dobrikov, Marco"]
[Black "Rohde, Niclas"]
[Result "1-0"]
[ECO "B90"]
[WhiteElo "2234"]
[BlackElo "1730"]
[Annotator "TA"]
[PlyCount "77"]
[EventDate "2022.06.05"]
[EventType "swiss"]
[EventRounds "9"]
[EventCountry "GER"]
[SourceTitle "playchess.com"]
[Source "ChessBase"]
[SourceQuality "1"]
[TimeControl "40/4500+30:900+30"]

{[%evp 12,77,14,19,21,25,26,18,26,26,15,23,13,11,23,0,8,5,21,31,42,33,21,0,0,0,0,0,28,23,73,71,168,180,173,173,165,131,181,183,185,172,350,334,520,521,548,528,817,807,801,739,956,968,918,893,856,705,640,591,714,712,852,820,1210,1207,1106,729]} 1. e4 {[%emt 0:00:00]} c5 {[%emt 0:00:00]} 2. Nf3 {[%emt 0:00:00]} d6 {[%emt 0:00:00]} 3. d4 {[%emt 0:00:00]} cxd4 {[%emt 0:00:00]} 4. Nxd4 {[%emt 0:00:00]} Nf6 {[%emt 0:00:00]} 5. Nc3 {[%emt 0:00:00]} a6 {[%emt 0:00:00]} 6. h3 {[%emt 0:00:00]} e5 {[%emt 0:00:00] The main line 6...e5 scores better than 6...e6.} 7. Nde2 {[%emt 0:00:00]} h5 {[%emt 0:00:00] B90: Sicilian Najdorf: Unusual White 6th moves, 6 Be3 Ng4 and 6 Be3 e5.} 8. Bg5 {[%emt 0:00:00]} Be6 {[%emt 0:00:00]} 9. Bxf6 {[%emt 0:00:00]} Qxf6 {[%emt 0:00:00] The position is equal.} 10. Nd5 {[%emt 0:00:00]} Qd8 {[%emt 0:00:00]} 11. Qd3 {[%emt 0:00:00]} Nd7 {[%emt 0:00:00]} 12. O-O-O {[%emt 0:00:00]} Nc5 {[%emt 0:00:00]} 13. Qa3 {[%emt 0:00:00]} g6 {[%emt 0:00:00]} 14. Nec3 {[%emt 0:00:00] [#]} Bg7 $146 {[%emt 0:00:00]} ({Predecessor:} 14... Bh6+ 15. Kb1 O-O 16. h4 Bxd5 17. Rxd5 b5 18. Be2 Qb6 19. Qb4 Rfb8 20. Rhd1 Qc7 {½-½ (48) Maksimovic,B (2352)-Bjerre,J (2516) Bratislava 2019}) 15. h4 {[%emt 0:00:00]} O-O {[%emt 0:00:00]} 16. f3 {[%emt 0:00:00]} f5 {[%emt 0:02:36]} 17. Be2 {[%emt 0:00:00]} f4 {[%emt 0:02:09]} 18. b4 {[%emt 0:05:50]} Nd7 {[%emt 0:00:29]} 19. Bc4 {[%emt 0:00:34][%cal Od5e3]} Bf7 {[%emt 0:09:54]} 20. Bb3 {[%emt 0:01:42]} b5 {[%emt 0:06:12]} (20... Rc8 $11) 21. Qa5 $16 {[%emt 0:02:29] Black must now prevent Qxd8. White is more active.} Nc5 {[%emt 0:11:01]} 22. Qxd8 $18 {[%emt 0:04:25]} Nxb3+ {[%emt 0:00:06]} 23. axb3 {[%emt 0:02:10]} Rfxd8 {[%emt 0:00:09]} 24. Kb2 {[%emt 0:00:06]} Ra7 {[%emt 0:10:37]} (24... Bxd5 $16 {was necessary.} 25. Nxd5 Kf7) 25. Ra1 {[%emt 0:00:40]} Bxd5 {[%emt 0:06:14]} 26. Nxd5 {[%emt 0:00:12]} ({Not} 26. exd5 $2 e4 27. fxe4 Rc8 $19) 26... Rc8 $2 {[%emt 0:01:24] [#]} (26... Kf7 {keeps fighting.} 27. Ra5 Bf6) 27. Ra5 {[%emt 0:01:13][%cal Ba1a5,Ba5b5,Bb5b8][%mdl 32]} Rc6 {[%emt 0:00:40]} (27... Kf7 {was worth a try.} 28. Rha1 Rb7 29. Rxa6 Bf8) 28. Rha1 {[%emt 0:00:12] White is clearly winning.} Kf7 {[%emt 0:04:57]} 29. Rxb5 {[%emt 0:00:04]} Bf6 {[%emt 0:00:25]} 30. Rb8 {[%emt 0:00:37]} Rd7 {[%emt 0:02:22]} 31. c4 {[%emt 0:07:19][%cal Bc2c4,Bc4b5,Bb5b6,Bb6b7][%mdl 32]} Bxh4 {[%emt 0:01:15]} 32. b5 {[%emt 0:01:31]} axb5 {[%emt 0:00:56]} 33. cxb5 {[%emt 0:00:01]} Rc5 {[%emt 0:00:52]} 34. b4 {[%emt 0:00:04]} Rxd5 {[%emt 0:00:16]} 35. exd5 {[%emt 0:00:01] [#] And now b6 would win.} e4 {[%emt 0:00:07] aiming for ...Bf6+.} 36. Kb3 {[%emt 0:06:00] Threatens to win with b6.} e3 {[%emt 0:02:34]} 37. b6 {[%emt 0:00:01]} Bd8 {[%emt 0:09:59]} 38. b7 {[%emt 0:02:08]} Kf6 {[%emt 0:00:59]} 39. Rc8 {[%emt 0:03:06] Weighted Error Value: White=0.05 (flawless) /Black=0.32} 1-0

[Event "GER-ch Youth-U18 2022"]
[Site "Willingen"]
[Date "2022.06.05"]
[Round "2.10"]
[White "Haack, Kevin"]
[Black "Zackrisson, Peter"]
[Result "1-0"]
[ECO "A15"]
[WhiteElo "2176"]
[BlackElo "2015"]
[Annotator "TA"]
[PlyCount "47"]
[EventDate "2022.06.05"]
[EventType "swiss"]
[EventRounds "9"]
[EventCountry "GER"]
[SourceTitle "playchess.com"]
[Source "ChessBase"]
[SourceQuality "1"]
[TimeControl "40/4500+30:900+30"]

{[%evp 17,47,0,35,11,36,25,54,39,43,30,101,97,87,104,84,118,256,229,379,377,542,518,681,679,947,872,1113,1079,1289,1264,1162,1146]} 1. c4 {[%emt 0:00:00]} Nf6 {[%emt 0:00:00]} 2. g3 {[%emt 0:00:00]} g6 {[%emt 0:00:00]} 3. Bg2 {[%emt 0:00:00]} Bg7 {[%emt 0:00:00]} 4. Nc3 {[%emt 0:00:00]} O-O {[%emt 0:00:00]} 5. e3 {[%emt 0:00:00]} d6 {[%emt 0:00:00]} 6. Nge2 {[%emt 0:00:00]} e5 {[%emt 0:00:00]} 7. O-O {[%emt 0:00:00]} Nc6 {[%emt 0:00:00]} 8. d4 {[%emt 0:00:00]} exd4 {[%emt 0:00:45]} 9. exd4 {[%emt 0:00:00]} Bf5 {[%emt 0:01:24]} 10. h3 {[%emt 0:00:00] E61: King's Indian: Early deviations for White, including Smyslov System.} Re8 {[%emt 0:03:26]} 11. g4 {[%emt 0:00:00]} Bc8 {[%emt 0:01:51]} 12. Bg5 {[%emt 0:00:00][%cal Bc1g5,Bg5h4,Bh4g3][%mdl 32] White is slightly better.} h6 {[%emt 0:01:16]} 13. Bh4 {[%emt 0:00:00] [#]} g5 $146 {[%emt 0:06:15]} (13... Ne7 $1 $11 {remains equal.}) ({Predecessor:} 13... Qd7 14. Qd2 Nxg4 15. hxg4 Qxg4 16. Bg3 Nxd4 17. Nxd4 Bxd4 18. Rad1 Be5 19. Nd5 Be6 20. Nxc7 Bxc4 21. Rfe1 {1-0 (21) Koth,S-Sziraki,T (2255) Balatonbereny 1995}) 14. Bg3 $16 {[%emt 0:00:00]} h5 {[%emt 0:00:54] [#]} 15. f4 $1 {[%emt 0:18:20]} hxg4 {[%emt 0:19:11] Strongly threatening ...Nh5.} 16. fxg5 {[%emt 0:00:38]} Nh7 {[%emt 0:29:07]} (16... Nh5 $16) 17. h4 $18 {[%emt 0:04:05]} Ne7 {[%emt 0:00:34]} (17... Nxg5 $142 18. hxg5 Qxg5) 18. Qd3 {[%emt 0:03:29]} c6 {[%emt 0:02:02] [#]} (18... f5 {keeps fighting.} 19. Nf4 c6) 19. Rxf7 $3 {[%emt 0:07:29][%mdl 512] White is clearly winning.} Kxf7 {[%emt 0:03:04]} (19... Be6 20. Rf2) 20. Qxh7 {[%emt 0:00:04] Threatens to win with Rf1+.} Rg8 {[%emt 0:01:46]} 21. Qh5+ {[%emt 0:04:33]} Kf8 {[%emt 0:03:28]} 22. Rf1+ {[%emt 0:00:38]} Bf5 {[%emt 0:00:08]} 23. Be4 {[%emt 0:01:17]} Rh8 {[%emt 0:00:08]} 24. Qxg4 {[%emt 0:00:04] White took control after the opening.  Weighted Error Value: White=0.02 (flawless) /Black=0.71} 1-0

[Event "GER-ch Youth-U18 2022"]
[Site "Willingen"]
[Date "2022.06.05"]
[Round "2.11"]
[White "Dahl, Christoph"]
[Black "Dietlmeier, Tobias"]
[Result "1-0"]
[ECO "B78"]
[WhiteElo "2368"]
[BlackElo "1886"]
[Annotator "TA"]
[PlyCount "50"]
[EventDate "2022.06.05"]
[EventType "swiss"]
[EventRounds "9"]
[EventCountry "GER"]
[SourceTitle "playchess.com"]
[Source "ChessBase"]
[SourceQuality "1"]
[TimeControl "40/4500+30:900+30"]

{[%evp 23,50,60,109,116,66,74,87,74,99,96,97,99,100,101,96,102,231,216,187,193,228,225,225,225,223,217,263,263,263]} 1. e4 {[%emt 0:00:00]} c5 {[%emt 0:00:00]} 2. Nf3 {[%emt 0:00:00]} d6 {[%emt 0:00:00]} 3. d4 {[%emt 0:00:00]} cxd4 {[%emt 0:00:00]} 4. Nxd4 {[%emt 0:00:00]} Nf6 {[%emt 0:00:00]} 5. Nc3 {[%emt 0:00:00]} g6 {[%emt 0:00:00]} 6. Be3 {[%emt 0:00:00]} Bg7 {[%emt 0:00:00]} 7. f3 {[%emt 0:00:00]} O-O {[%emt 0:00:00]} 8. Qd2 {[%emt 0:00:00]} Nc6 {[%emt 0:00:00]} 9. Bc4 {[%emt 0:00:00]} Bd7 {[%emt 0:00:00]} 10. O-O-O {[%emt 0:00:00]} Rc8 {[%emt 0:00:00]} 11. Bb3 {[%emt 0:00:00]} Ne5 {[%emt 0:01:10] 11...Ne5 was played by the boomers.} 12. Kb1 {[%emt 0:00:00]} Qa5 {[%emt 0:06:31]} (12... a6 $14 {feels stronger.}) 13. Nd5 $16 {[%emt 0:00:00] B78: Sicilian Dragon: Yugoslav Attack, 9 Bc4 Bd7 10 0-0-0 Rc8.} Qd8 {[%emt 0:03:40]} 14. Bh6 {[%emt 0:14:31]} Nxd5 {[%emt 0:04:17]} 15. exd5 {[%emt 0:02:49] White is better.} Nc4 {[%emt 0:04:48]} 16. Bxc4 {[%emt 0:00:15] [#]} Bxh6 $146 {[%emt 0:01:00]} ({Predecessor:} 16... Rxc4 17. Bxg7 Kxg7 18. h4 h5 19. g4 Rh8 20. Qf4 b5 21. b3 Rc5 22. Qe4 a5 {1-0 (48) Mosquera,M (2372)-Remicio Duque,J (2216) San Andres Islas 2008}) 17. Qxh6 {[%emt 0:00:06]} Rxc4 {[%emt 0:00:09]} 18. h4 {[%emt 0:02:57] And now h5 would win. White is more active.} e5 {[%emt 0:09:55]} 19. dxe6 $1 {[%emt 0:01:04]} Bxe6 {[%emt 0:04:16] Loses the game.} (19... fxe6 $16 {might work better.} 20. h5 Qf6) 20. Nxe6 {[%emt 0:09:48]} fxe6 {[%emt 0:00:15]} 21. h5 $40 {[%emt 0:00:07][%mdl 128] White has strong attack.} Qf6 {[%emt 0:19:44]} 22. hxg6 {[%emt 0:03:09]} ({Much less strong is} 22. Rxd6 $6 Rh4 23. Re1 (23. Rxh4 Qxh4 24. Rxe6 Qh1+ 25. Qc1 Qxh5 $16) 23... Rxh5) 22... Qxg6 {[%emt 0:00:15]} 23. Qxg6+ {[%emt 0:00:10]} ({Not} 23. Rxd6 Qxh6 24. Rxh6 Rg4 $16) 23... hxg6 {[%emt 0:00:06]} 24. Rxd6 {[%emt 0:00:07]} Rc6 {[%emt 0:02:43]} 25. Rd7 {[%emt 0:00:53]} Rfc8 {[%emt 0:02:04] Weighted Error Value: White=0.00 (flawless) /Black=0.32} 1-0

[Event "GER-ch Youth-U18 2022"]
[Site "Willingen"]
[Date "2022.06.05"]
[Round "2.12"]
[White "Jeschke, Jan"]
[Black "Wehrle, Maximilian"]
[Result "1/2-1/2"]
[ECO "B21"]
[WhiteElo "2130"]
[BlackElo "1786"]
[Annotator "TA"]
[PlyCount "42"]
[EventDate "2022.06.05"]
[EventType "swiss"]
[EventRounds "9"]
[EventCountry "GER"]
[SourceTitle "playchess.com"]
[Source "ChessBase"]
[SourceQuality "1"]
[TimeControl "40/4500+30:900+30"]

{[%evp 15,42,-54,-49,-39,-37,-28,-42,-143,-141,-337,-340,-386,-338,-461,-412,-452,-457,-434,-273,-504,-509,-502,-398,-384,0,-476,0,-349,0]} 1. e4 {[%emt 0:00:00]} c5 {[%emt 0:00:00]} 2. d4 {[%emt 0:00:00]} cxd4 {[%emt 0:00:00]} 3. c3 {[%emt 0:00:00]} dxc3 {[%emt 0:00:00]} 4. Nxc3 {[%emt 0:00:00]} e6 {[%emt 0:00:00]} 5. Nf3 {[%emt 0:00:00]} a6 {[%emt 0:00:00]} 6. Bc4 {[%emt 0:00:00]} b5 {[%emt 0:00:00]} 7. Bb3 {[%emt 0:00:00]} Bb7 {[%emt 0:00:00]} 8. O-O {[%emt 0:00:00] The modern move.} Nc6 {[%emt 0:00:00][%cal Bb8c6,Bc6a5,Ba5b3][%mdl 32]} 9. Nd5 {[%emt 0:00:00][%cal Oc1e3] [#] B21: Sicilian: 2 f4 and Morra Gambit.} Bd6 $146 {[%emt 0:04:59]} ({Resist} 9... exd5 10. exd5 Nf6 11. dxc6 dxc6 12. Ng5 Qxd1 13. Bxf7+ (13. Rxd1 Nd5 $11) 13... Ke7 14. Rxd1 $16) ({Predecessor:} 9... Na5 10. Bg5 Be7 11. Nxe7 Nxe7 12. Bc2 f6 13. Bd2 Nc4 14. Bc3 Rc8 15. a4 O-O 16. Nd2 Nb6 17. axb5 axb5 {½-½ (27) Mcdaniel,C (2178)-Morcin,T (2097) LSS email 2021}) 10. Bg5 {[%emt 0:10:47]} f6 {[%emt 0:03:52]} 11. Bh4 {[%emt 0:19:48]} exd5 $17 {[%emt 0:05:30]} ({Not} 11... g5 12. Ne3 $15 (12. Nxg5 fxg5 13. Qh5+ Kf8 $11)) 12. exd5 $2 {[%emt 0:07:45] [#]} (12. Qxd5 $17 Qe7 13. Rfd1) 12... Na5 $19 {[%emt 0:05:53]} 13. Nd4 {[%emt 0:07:10]} Ne7 {[%emt 0:02:22] Inhibits Nf5.} 14. Qh5+ {[%emt 0:15:25]} Kf8 {[%emt 0:03:00]} 15. Rfe1 {[%emt 0:05:28]} Nxb3 {[%emt 0:03:09]} 16. axb3 {[%emt 0:00:35]} Bxd5 {[%emt 0:07:04]} 17. Bxf6 $2 {[%emt 0:06:27] [#]} (17. Rxe7 {was the only defense.} Qxe7 18. Qxd5) 17... gxf6 {[%emt 0:01:00]} 18. Qh6+ {[%emt 0:00:08]} Kf7 {[%emt 0:00:26]} 19. Qh5+ {[%emt 0:00:16]} Kf8 {[%emt 0:03:05]} 20. Qh6+ {[%emt 0:00:34]} Kf7 {[%emt 0:00:27]} 21. Qh5+ $1 {[%emt 0:00:10]} Kf8 $2 {White did not feel at home in the position after the opening.  Weighted Error Value: White=0.46/Black=0.76} (21... Kg8 $19 22. Rxe7 Bxe7 23. Qxd5+ Kf8) 1/2-1/2